[Event "94th FRA-ch Accession 2019"]
[Site "Chartres"]
[Date "2019.08.22"]
[Round "6.2"]
[White "Demuth, Adrien"]
[Black "Di Nicolantonio, Lucas"]
[Result "1/2-1/2"]
[ECO "B51"]
[WhiteElo "2495"]
[BlackElo "2394"]
[Annotator "ChessBase"]
[PlyCount "70"]
[EventDate "2019.08.17"]
[EventType "swiss"]
[EventCountry "FRA"]
[SourceTitle "playchess.com"]
[Source "ChessBase"]
[SourceQuality "1"]
[TimeControl "40/5400+30:1800+30"]

1. e4 {[%emt 0:00:00]} c5 {[%emt 0:01:18]} 2. Nf3 {[%emt 0:00:00]} d6 {[%emt 0:01:02]} 3. Bb5+ {[%emt 0:00:15]} Nd7 {[%emt 0:06:02]} 4. O-O {[%emt 0:00:12]} a6 {[%emt 0:01:55]} 5. Bd3 {[%emt 0:00:06]} Ngf6 {[%emt 0:02:22]} 6. Re1 {[%emt 0:00:05]} g6 {[%emt 0:00:28]} 7. c3 {[%emt 0:00:49]} Bg7 {[%emt 0:00:11]} 8. Bc2 {[%emt 0:00:03]} O-O {[%emt 0:00:47]} 9. d4 {[%emt 0:00:05]} b5 {[%emt 0:13:33]} 10. e5 {[%emt 0:09:18]} Ne8 {[%emt 0:01:43]} 11. Bg5 {[%emt 0:17:14]} dxe5 {[%emt 0:14:31]} 12. Nxe5 {[%emt 0:06:06]} Nxe5 {[%emt 0:03:22]} 13. dxe5 {[%emt 0:00:34]} Bd7 {[%emt 0:15:44]} 14. Qd5 {[%emt 0:15:57]} Nc7 {[%emt 0:00:55]} 15. Qxc5 {[%emt 0:00:18]} Ne6 {[%emt 0:00:17]} 16. Qe3 {[%emt 0:00:11]} Nxg5 {[%emt 0:00:42]} 17. Qxg5 {[%emt 0:00:04]} Bc6 {[%emt 0:02:52]} 18. Nd2 {[%emt 0:03:13]} e6 {[%emt 0:02:40]} 19. Qxd8 {[%emt 0:25:30]} Rfxd8 {[%emt 0:02:04]} 20. Nb3 {[%emt 0:00:33]} a5 {[%emt 0:03:24]} 21. a3 {[%emt 0:12:52]} Bd5 {[%emt 0:11:47]} 22. Nd4 {[%emt 0:01:23]} b4 {[%emt 0:00:13]} 23. axb4 {[%emt 0:03:36]} axb4 {[%emt 0:00:05]} 24. f4 {[%emt 0:00:09]} bxc3 {[%emt 0:00:42]} 25. bxc3 {[%emt 0:00:35]} Rxa1 {[%emt 0:06:50]} 26. Rxa1 {[%emt 0:00:01]} g5 {[%emt 0:00:09]} 27. g3 {[%emt 0:02:19]} gxf4 {[%emt 0:00:03]} 28. gxf4 {[%emt 0:00:01]} Bh6 {[%emt 0:00:07]} 29. f5 {[%emt 0:01:14]} Be3+ {[%emt 0:01:00]} 30. Kf1 {[%emt 0:00:01]} Bf4 {[%emt 0:00:08]} 31. fxe6 {[%emt 0:01:26]} fxe6 {[%emt 0:00:33]} 32. Ra7 {[%emt 0:00:02]} h6 {[%emt 0:00:33]} 33. Bb3 {[%emt 0:00:44]} Bxb3 {[%emt 0:00:29]} 34. Nxb3 {[%emt 0:00:01]} Bxe5 {[%emt 0:00:26]} 35. Nc5 {[%emt 0:00:24]} Bxc3 {[%emt 0:00:46]} 1/2-1/2

[Event "94th FRA-ch Accession 2019"]
[Site "Chartres"]
[Date "2019.08.22"]
[Round "6.3"]
[White "Lamard, Guillaume"]
[Black "Laurent-Paoli, Pierre"]
[Result "1-0"]
[ECO "B11"]
[WhiteElo "2419"]
[BlackElo "2371"]
[Annotator "NA"]
[PlyCount "131"]
[EventDate "2019.08.17"]
[EventType "swiss"]
[EventCountry "FRA"]
[SourceTitle "playchess.com"]
[Source "ChessBase"]
[SourceQuality "1"]
[TimeControl "40/5400+30:1800+30"]

1. e4 {[%emt 0:00:00]} c6 {[%emt 0:00:35]} 2. Nf3 {[%emt 0:00:00]} d5 {[%emt 0:00:04]} 3. Nc3 {[%emt 0:00:00]} Nf6 {[%emt 0:02:39]} 4. e5 {[%emt 0:00:18]} Ne4 {[%emt 0:00:03]} 5. d4 {[%emt 0:00:02]} Nxc3 {[%emt 0:10:37]} 6. bxc3 {[%emt 0:00:04]} e6 {[%emt 0:00:26]} 7. c4 {[%emt 0:01:12]} Be7 {[%emt 0:04:53]} 8. cxd5 {[%emt 0:04:09]} exd5 {[%emt 0:01:47]} 9. Bd3 {[%emt 0:01:31]} c5 {[%emt 0:01:33]} 10. dxc5 {[%emt 0:00:19]} Nc6 {[%emt 0:07:06]} 11. h3 {[%emt 0:04:02]} Bxc5 {[%emt 0:05:15]} 12. O-O {[%emt 0:01:33]} Be6 {[%emt 0:02:53]} 13. Rb1 {[%emt 0:11:21]} Qd7 {[%emt 0:07:57]} 14. Rb5 {[%emt 0:00:10]} b6 {[%emt 0:02:19]} 15. c3 {[%emt 0:06:19]} O-O {[%emt 0:11:31]} 16. Rb2 {[%emt 0:17:10]} h6 {[%emt 0:11:56]} 17. Bb1 {[%emt 0:17:41]} Bf5 {[%emt 0:00:11]} 18. Bf4 {[%emt 0:07:09]} Rad8 {[%emt 0:03:14]} 19. Rd2 {[%emt 0:02:32]} Qe6 {[%emt 0:03:26]} 20. Bxf5 {[%emt 0:00:58]} Qxf5 {[%emt 0:00:06]} 21. Bg3 {[%emt 0:00:03]} Qe6 {[%emt 0:02:59]} 22. Rd3 {[%emt 0:01:45]} Rd7 {[%emt 0:05:04]} 23. Re1 {[%emt 0:03:27]} d4 {[%emt 0:06:53]} 24. cxd4 {[%emt 0:01:19]} Rfd8 {[%emt 0:00:04]} 25. Bh4 {[%emt 0:05:30]} g5 {[%emt 0:03:31]} 26. Nxg5 {[%emt 0:03:30]} hxg5 {[%emt 0:00:04]} 27. Rg3 {[%emt 0:00:44]} Be7 {[%emt 0:02:39]} 28. Bxg5 {[%emt 0:01:12]} Bxg5 {[%emt 0:00:01]} 29. Rxg5+ {[%emt 0:02:00]} Kf8 {[%emt 0:00:03]} 30. Qh5 {[%emt 0:00:32]} Rxd4 {[%emt 0:00:40]} 31. Re3 {[%emt 0:01:01]} Ke7 {[%emt 0:01:41]} 32. Rf5 {[%emt 0:03:13]} Qg6 {[%emt 0:00:53]} 33. e6 {[%emt 0:00:59]} Qxh5 {[%emt 0:01:00]} 34. exf7+ {[%emt 0:00:04]} Kd7 {[%emt 0:01:02]} 35. Rxh5 {[%emt 0:00:07]} Rf8 {[%emt 0:00:06]} 36. Rf5 {[%emt 0:00:37]} Ne7 {[%emt 0:00:57]} 37. Rff3 {[%emt 0:01:06]} Ng6 {[%emt 0:01:18]} 38. Rf6 {[%emt 0:00:47]} Rd6 {[%emt 0:00:24]} 39. Rf5 {[%emt 0:01:22]} Ne7 {[%emt 0:00:35]} 40. Rff3 {[%emt 0:00:16]} Nd5 {[%emt 0:00:19]} 41. Re5 {[%emt 0:30:23]} Ne7 {[%emt 0:07:21]} 42. h4 {[%emt 0:00:00]} Ng6 {[%emt 0:01:26]} 43. Re4 {[%emt 0:00:00]} Re6 {[%emt 0:00:55]} 44. Ra4 {[%emt 0:00:00]} a5 {[%emt 0:00:58]} 45. Rf5 {[%emt 0:00:00]} Ke7 {[%emt 0:01:33]} 46. h5 {[%emt 0:00:00]} Ne5 {[%emt 0:00:47]} 47. Re4 {[%emt 0:00:00]} Nxf7 {[%emt 0:00:16]} 48. Ref4 {[%emt 0:00:00]} Re1+ {[%emt 0:01:41]} 49. Kh2 {[%emt 0:00:00]} Re5 {[%emt 0:00:04]} 50. g4 {[%emt 0:00:00]} Rxf5 {[%emt 0:00:22]} 51. Rxf5 {[%emt 0:00:00]} Nd6 {[%emt 0:10:44]} 52. Re5+ {[%emt 0:00:00]} Kf6 {[%emt 0:00:13]} 53. f4 {[%emt 0:00:00]} Nc4 {[%emt 0:08:12]} 54. g5+ {[%emt 0:00:00]} Kf7 {[%emt 0:00:27]} 55. Re2 {[%emt 0:00:00]} Rh8 {[%emt 0:00:58]} 56. h6 {[%emt 0:00:00]} Kg6 {[%emt 0:00:29]} 57. Kg3 {[%emt 0:00:00]} Kf5 {[%emt 0:00:43]} 58. Re7 {[%emt 0:00:00]} b5 {[%emt 0:01:39]} 59. Rc7 {[%emt 0:00:00]} Kg6 {[%emt 0:01:08]} 60. a4 {[%emt 0:04:13]} Ne3 {[%emt 0:00:33]} 61. axb5 {[%emt 0:00:42]} Rb8 {[%emt 0:00:37]} 62. Rc6+ {[%emt 0:00:33]} Kf7 {[%emt 0:00:36]} 63. g6+ {[%emt 0:01:54]} Ke7 {[%emt 0:00:04]} 64. h7 {[%emt 0:01:16]} Rh8 {[%emt 0:00:51]} 65. Kf3 {[%emt 0:01:13]} Nf5 {[%emt 0:00:03]} 66. Ke4 {[%emt 0:00:12]} 1-0

[Event "94th FRA-ch Accession 2019"]
[Site "Chartres"]
[Date "2019.08.22"]
[Round "6.4"]
[White "Bailet, Pierre"]
[Black "Bujisho, Benjamin"]
[Result "1-0"]
[ECO "B52"]
[WhiteElo "2490"]
[BlackElo "2317"]
[Annotator "ChessBase"]
[PlyCount "135"]
[EventDate "2019.08.17"]
[EventType "swiss"]
[EventCountry "FRA"]
[SourceTitle "playchess.com"]
[Source "ChessBase"]
[SourceQuality "1"]
[TimeControl "40/5400+30:1800+30"]

1. e4 {[%emt 0:00:07]} c5 {[%emt 0:00:00]} 2. Nf3 {[%emt 0:00:21]} d6 {[%emt 0:00:00]} 3. Bb5+ {[%emt 0:02:47]} Bd7 {[%emt 0:00:06]} 4. c4 {[%emt 0:00:53]} Bxb5 {[%emt 0:00:03]} 5. cxb5 {[%emt 0:00:06]} Nf6 {[%emt 0:00:09]} 6. Nc3 {[%emt 0:00:50]} g6 {[%emt 0:00:20]} 7. O-O {[%emt 0:01:03]} Bg7 {[%emt 0:00:06]} 8. d4 {[%emt 0:02:10]} cxd4 {[%emt 0:00:04]} 9. Nxd4 {[%emt 0:00:09]} O-O {[%emt 0:00:16]} 10. Be3 {[%emt 0:03:31]} Nbd7 {[%emt 0:02:53]} 11. Qe2 {[%emt 0:01:31]} e6 {[%emt 0:00:24]} 12. a4 {[%emt 0:02:55]} a5 {[%emt 0:00:14]} 13. bxa6 {[%emt 0:03:46]} bxa6 {[%emt 0:05:25]} 14. b4 {[%emt 0:05:50]} Qc7 {[%emt 0:13:22]} 15. b5 {[%emt 0:30:20]} Qb7 {[%emt 0:28:04]} 16. f3 {[%emt 0:03:32]} d5 {[%emt 0:02:04]} 17. exd5 {[%emt 0:02:18]} Nxd5 {[%emt 0:01:14]} 18. Nxd5 {[%emt 0:00:19]} exd5 {[%emt 0:00:47]} 19. Bf2 {[%emt 0:04:52]} Rfe8 {[%emt 0:03:33]} 20. bxa6 {[%emt 0:06:46]} Qxa6 {[%emt 0:01:08]} 21. Qb5 {[%emt 0:04:05]} Ne5 {[%emt 0:05:52]} 22. Rfd1 {[%emt 0:03:17]} h5 {[%emt 0:05:18]} 23. Ra2 {[%emt 0:03:54]} Red8 {[%emt 0:15:36]} 24. Qxa6 {[%emt 0:02:28]} Rxa6 {[%emt 0:00:02]} 25. Nb3 {[%emt 0:00:09]} Bf8 {[%emt 0:01:42]} 26. Nc5 {[%emt 0:02:05]} Rc6 {[%emt 0:00:50]} 27. Nb3 {[%emt 0:01:40]} Ra6 {[%emt 0:02:17]} 28. Bc5 {[%emt 0:02:54]} Rb8 {[%emt 0:04:18]} 29. Bxf8 {[%emt 0:00:56]} Kxf8 {[%emt 0:00:32]} 30. Nc5 {[%emt 0:01:44]} Ra5 {[%emt 0:00:43]} 31. Rc2 {[%emt 0:01:12]} Kg8 {[%emt 0:03:13]} 32. Rxd5 {[%emt 0:00:44]} Rb1+ {[%emt 0:01:47]} 33. Kf2 {[%emt 0:00:08]} Nc6 {[%emt 0:00:03]} 34. Ne4 {[%emt 0:03:27]} Rxd5 {[%emt 0:00:35]} 35. Nf6+ {[%emt 0:00:06]} Kg7 {[%emt 0:00:03]} 36. Nxd5 {[%emt 0:00:07]} Ne5 {[%emt 0:02:36]} 37. Ra2 {[%emt 0:01:16]} Nc6 {[%emt 0:01:01]} 38. Ke3 {[%emt 0:02:29]} h4 {[%emt 0:00:13]} 39. Rc2 {[%emt 0:00:53]} Ne5 {[%emt 0:01:33]} 40. Kd4 {[%emt 0:00:29]} Nd7 {[%emt 0:00:36]} 41. Ra2 {[%emt 0:17:39]} h3 {[%emt 0:02:17]} 42. gxh3 {[%emt 0:00:14]} Rd1+ {[%emt 0:00:36]} 43. Kc4 {[%emt 0:00:07]} Ne5+ {[%emt 0:01:05]} 44. Kc5 {[%emt 0:00:06]} Rc1+ {[%emt 0:03:12]} 45. Kb6 {[%emt 0:05:16]} Rd1 {[%emt 0:01:05]} 46. f4 {[%emt 0:01:12]} Nc4+ {[%emt 0:02:43]} 47. Kc5 {[%emt 0:00:27]} Na5 {[%emt 0:00:03]} 48. Ne3 {[%emt 0:03:05]} Rd3 {[%emt 0:00:17]} 49. Nc4 {[%emt 0:00:55]} Nb7+ {[%emt 0:00:41]} 50. Kb6 {[%emt 0:02:42]} Rb3+ {[%emt 0:00:05]} 51. Kc6 {[%emt 0:01:08]} Rb4 {[%emt 0:00:22]} 52. Kd5 {[%emt 0:00:12]} Rb3 {[%emt 0:00:20]} 53. a5 {[%emt 0:01:25]} Nxa5 {[%emt 0:00:11]} 54. Nxa5 {[%emt 0:00:25]} Rxh3 {[%emt 0:00:03]} 55. Nc4 {[%emt 0:00:31]} Rh4 {[%emt 0:01:05]} 56. Rf2 {[%emt 0:00:30]} f6 {[%emt 0:00:35]} 57. Ke6 {[%emt 0:01:13]} g5 {[%emt 0:00:20]} 58. Nd6 {[%emt 0:00:20]} Rh3 {[%emt 0:00:50]} 59. Ne8+ {[%emt 0:00:57]} Kf8 {[%emt 0:00:24]} 60. Nxf6 {[%emt 0:00:27]} gxf4 {[%emt 0:00:03]} 61. Ng4 {[%emt 0:01:02]} Kg7 {[%emt 0:00:46]} 62. Kf5 {[%emt 0:00:07]} Ra3 {[%emt 0:00:43]} 63. Kxf4 {[%emt 0:00:15]} Kg6 {[%emt 0:00:01]} 64. Rf3 {[%emt 0:00:17]} Ra1 {[%emt 0:00:14]} 65. Kg3 {[%emt 0:00:34]} Kh5 {[%emt 0:00:12]} 66. Rf5+ {[%emt 0:00:08]} Kg6 {[%emt 0:00:03]} 67. Rb5 {[%emt 0:00:07]} Ra6 {[%emt 0:00:37]} 68. Rc5 {[%emt 0:00:23]} 1-0

[Event "94th FRA-ch Accession 2019"]
[Site "Chartres"]
[Date "2019.08.22"]
[Round "6.5"]
[White "Maurizzi, Marc Andria"]
[Black "Delorme, Alban"]
[Result "1/2-1/2"]
[ECO "B45"]
[WhiteElo "2419"]
[BlackElo "2308"]
[Annotator "NA"]
[PlyCount "123"]
[EventDate "2019.08.17"]
[EventType "swiss"]
[EventCountry "FRA"]
[SourceTitle "playchess.com"]
[Source "ChessBase"]
[SourceQuality "1"]
[TimeControl "40/5400+30:1800+30"]

1. e4 {[%emt 0:00:00]} c5 {[%emt 0:09:04]} 2. Nf3 {[%emt 0:00:00]} e6 {[%emt 0:00:10]} 3. d4 {[%emt 0:01:06]} cxd4 {[%emt 0:00:18]} 4. Nxd4 {[%emt 0:00:03]} Nf6 {[%emt 0:00:08]} 5. Nc3 {[%emt 0:00:02]} Nc6 {[%emt 0:00:05]} 6. Nxc6 {[%emt 0:00:19]} bxc6 {[%emt 0:04:29]} 7. e5 {[%emt 0:00:06]} Nd5 {[%emt 0:00:04]} 8. Ne4 {[%emt 0:00:02]} f5 {[%emt 0:02:15]} 9. exf6 {[%emt 0:00:24]} Nxf6 {[%emt 0:00:09]} 10. Nd6+ {[%emt 0:00:05]} Bxd6 {[%emt 0:00:06]} 11. Qxd6 {[%emt 0:00:05]} Qa5+ {[%emt 0:04:33]} 12. Bd2 {[%emt 0:07:15]} Qd5 {[%emt 0:00:05]} 13. Bb4 {[%emt 0:17:00]} Qxd6 {[%emt 0:00:08]} 14. Bxd6 {[%emt 0:00:02]} Kf7 {[%emt 0:08:01]} 15. f3 {[%emt 0:21:38]} Ne8 {[%emt 0:08:15]} 16. Ba3 {[%emt 0:03:17]} d5 {[%emt 0:01:33]} 17. c4 {[%emt 0:01:47]} e5 {[%emt 0:03:27]} 18. cxd5 {[%emt 0:01:35]} cxd5 {[%emt 0:00:06]} 19. Rc1 {[%emt 0:03:09]} Bd7 {[%emt 0:04:28]} 20. Ba6 {[%emt 0:01:53]} Rb8 {[%emt 0:00:30]} 21. Kd2 {[%emt 0:05:41]} Ke6 {[%emt 0:04:40]} 22. Rhe1 {[%emt 0:09:26]} Rb6 {[%emt 0:05:17]} 23. Bd3 {[%emt 0:03:26]} Rc6 {[%emt 0:05:15]} 24. Rxc6+ {[%emt 0:05:01]} Bxc6 {[%emt 0:00:01]} 25. Bc5 {[%emt 0:00:20]} Nd6 {[%emt 0:01:07]} 26. Bxa7 {[%emt 0:00:16]} e4 {[%emt 0:00:27]} 27. Bd4 {[%emt 0:04:17]} Ra8 {[%emt 0:01:18]} 28. a3 {[%emt 0:00:41]} g6 {[%emt 0:00:53]} 29. Bf1 {[%emt 0:02:34]} Ra4 {[%emt 0:02:30]} 30. Bc5 {[%emt 0:00:24]} Nc4+ {[%emt 0:00:26]} 31. Kc3 {[%emt 0:00:07]} Ne5 {[%emt 0:01:38]} 32. Bd4 {[%emt 0:01:53]} Ra8 {[%emt 0:01:25]} 33. Rc1 {[%emt 0:01:16]} Kd6 {[%emt 0:02:54]} 34. fxe4 {[%emt 0:01:16]} dxe4 {[%emt 0:02:30]} 35. Kd2 {[%emt 0:00:03]} Nd3 {[%emt 0:00:53]} 36. Rc3 {[%emt 0:04:05]} Bd5 {[%emt 0:04:48]} 37. b4 {[%emt 0:01:26]} Bc6 {[%emt 0:01:59]} 38. g3 {[%emt 0:01:35]} Kd5 {[%emt 0:00:39]} 39. Bxd3 {[%emt 0:00:48]} exd3 {[%emt 0:00:07]} 40. Be3 {[%emt 0:00:38]} Ba4 {[%emt 0:01:14]} 41. Rxd3+ {[%emt 0:30:32]} Ke4 {[%emt 0:30:05]} 42. Bc5 {[%emt 0:01:00]} Bb5 {[%emt 0:00:38]} 43. Re3+ {[%emt 0:00:38]} Kd5 {[%emt 0:00:02]} 44. Kc2 {[%emt 0:00:00]} Re8 {[%emt 0:00:00]} 45. Rxe8 {[%emt 0:00:00]} Ba4+ {[%emt 0:00:00]} 46. Kc3 {[%emt 0:00:00]} Bxe8 {[%emt 0:00:00]} 47. Kb3 {[%emt 0:00:00]} Bb5 {[%emt 0:00:00]} 48. a4 {[%emt 0:00:00]} Be2 {[%emt 0:00:00]} 49. Be7 {[%emt 0:00:00]} Bd1+ {[%emt 0:00:00]} 50. Ka3 {[%emt 0:00:00]} Kc4 {[%emt 0:00:00]} 51. b5 {[%emt 0:00:00]} h5 {[%emt 0:00:00]} 52. Bg5 {[%emt 0:00:44]} Bc2 {[%emt 0:00:00]} 53. Be3 {[%emt 0:00:11]} Bd1 {[%emt 0:00:00]} 54. b6 {[%emt 0:00:28]} Bf3 {[%emt 0:00:00]} 55. a5 {[%emt 0:01:02]} Kb5 {[%emt 0:00:00]} 56. Bd2 {[%emt 0:00:04]} Bb7 {[%emt 0:00:00]} 57. Kb2 {[%emt 0:08:50]} Kc6 {[%emt 0:00:00]} 58. Kc3 {[%emt 0:00:00]} Ba6 {[%emt 0:00:00]} 59. Kd4 {[%emt 0:00:00]} Kb7 {[%emt 0:00:00]} 60. Ke3 {[%emt 0:00:00]} Bb5 {[%emt 0:00:00]} 61. a6+ {[%emt 0:00:00]} Kxb6 {[%emt 0:00:00]} 62. Ke4 {[%emt 0:00:00]} 1/2-1/2

[Event "94th FRA-ch Accession 2019"]
[Site "Chartres"]
[Date "2019.08.22"]
[Round "6.6"]
[White "Ollier, Pablo"]
[Black "Joie, Sebastien"]
[Result "0-1"]
[ECO "A11"]
[WhiteElo "2382"]
[BlackElo "2413"]
[Annotator "NA"]
[PlyCount "138"]
[EventDate "2019.08.17"]
[EventType "swiss"]
[EventCountry "FRA"]
[SourceTitle "playchess.com"]
[Source "ChessBase"]
[SourceQuality "1"]
[TimeControl "40/5400+30:1800+30"]

1. Nf3 {[%emt 0:00:00]} d5 {[%emt 0:00:00]} 2. c4 {[%emt 0:00:05]} c6 {[%emt 0:00:00]} 3. g3 {[%emt 0:00:18]} dxc4 {[%emt 0:00:22]} 4. Bg2 {[%emt 0:01:25]} Bf5 {[%emt 0:00:06]} 5. Na3 {[%emt 0:05:44]} e5 {[%emt 0:00:27]} 6. Nxc4 {[%emt 0:07:03]} e4 {[%emt 0:00:07]} 7. Nh4 {[%emt 0:13:53]} Be6 {[%emt 0:00:06]} 8. Ne3 {[%emt 0:00:59]} Nf6 {[%emt 0:00:05]} 9. Qc2 {[%emt 0:07:42]} Na6 {[%emt 0:00:09]} 10. O-O {[%emt 0:03:02]} Nb4 {[%emt 0:18:51]} 11. Qb1 {[%emt 0:01:11]} Bc5 {[%emt 0:06:05]} 12. a3 {[%emt 0:04:11]} Nbd5 {[%emt 0:00:09]} 13. b4 {[%emt 0:00:51]} Bd4 {[%emt 0:00:19]} 14. Bb2 {[%emt 0:01:03]} Bxb2 {[%emt 0:00:26]} 15. Qxb2 {[%emt 0:50:03]} O-O {[%emt 0:01:29]} 16. Nhf5 {[%emt 0:00:00]} Nxe3 {[%emt 0:01:52]} 17. fxe3 {[%emt 0:00:00]} Bxf5 {[%emt 0:01:44]} 18. Rxf5 {[%emt 0:00:00]} Re8 {[%emt 0:04:37]} 19. Raf1 {[%emt 0:00:00]} Qd6 {[%emt 0:01:40]} 20. Rg5 {[%emt 0:00:00]} Kh8 {[%emt 0:04:22]} 21. Qb3 {[%emt 0:00:00]} Qe6 {[%emt 0:06:51]} 22. Qxe6 {[%emt 0:00:00]} Rxe6 {[%emt 0:00:14]} 23. b5 {[%emt 0:00:00]} h6 {[%emt 0:04:31]} 24. Rc5 {[%emt 0:00:00]} Rd8 {[%emt 0:01:21]} 25. bxc6 {[%emt 0:00:00]} bxc6 {[%emt 0:04:56]} 26. Ra5 {[%emt 0:00:00]} Re7 {[%emt 0:00:14]} 27. d3 {[%emt 0:00:00]} exd3 {[%emt 0:00:29]} 28. exd3 {[%emt 0:00:00]} Rxd3 {[%emt 0:00:15]} 29. Bxc6 {[%emt 0:00:00]} Rdxe3 {[%emt 0:00:10]} 30. Rb1 {[%emt 0:00:00]} Re1+ {[%emt 0:06:24]} 31. Rxe1 {[%emt 0:00:00]} Rxe1+ {[%emt 0:00:06]} 32. Kg2 {[%emt 0:00:00]} Re7 {[%emt 0:00:58]} 33. a4 {[%emt 0:00:00]} g5 {[%emt 0:00:55]} 34. Rb5 {[%emt 0:00:00]} Rc7 {[%emt 0:00:31]} 35. Ba8 {[%emt 0:00:00]} Rc8 {[%emt 0:02:57]} 36. Bb7 {[%emt 0:00:00]} Rc2+ {[%emt 0:00:10]} 37. Kg1 {[%emt 0:01:30]} Rc7 {[%emt 0:09:48]} 38. a5 {[%emt 0:07:22]} Nd7 {[%emt 0:00:48]} 39. a6 {[%emt 0:01:37]} Kg7 {[%emt 0:00:39]} 40. Kf2 {[%emt 0:01:27]} Rc2+ {[%emt 0:02:16]} 41. Kg1 {[%emt 0:02:50]} Nc5 {[%emt 0:08:31]} 42. Bc8 {[%emt 0:02:02]} Ne4 {[%emt 0:08:50]} 43. Rb8 {[%emt 0:02:50]} Nd6 {[%emt 0:00:42]} 44. Bh3 {[%emt 0:03:16]} Rc6 {[%emt 0:08:17]} 45. Bf1 {[%emt 0:01:15]} Rc8 {[%emt 0:00:10]} 46. Rb1 {[%emt 0:03:06]} f5 {[%emt 0:01:25]} 47. Bg2 {[%emt 0:02:36]} Kf6 {[%emt 0:00:15]} 48. Re1 {[%emt 0:00:34]} Rc5 {[%emt 0:00:43]} 49. Rd1 {[%emt 0:01:55]} Ke6 {[%emt 0:00:49]} 50. Bf1 {[%emt 0:04:12]} Ke5 {[%emt 0:10:15]} 51. Rb1 {[%emt 0:00:16]} Rc7 {[%emt 0:00:56]} 52. Re1+ {[%emt 0:02:21]} Ne4 {[%emt 0:01:00]} 53. Bg2 {[%emt 0:00:33]} Rc4 {[%emt 0:01:19]} 54. Rb1 {[%emt 0:00:32]} Rc7 {[%emt 0:05:28]} 55. Re1 {[%emt 0:00:42]} g4 {[%emt 0:00:56]} 56. Rb1 {[%emt 0:00:58]} Kd4 {[%emt 0:01:37]} 57. Bf1 {[%emt 0:03:47]} Ng5 {[%emt 0:04:50]} 58. Bg2 {[%emt 0:02:21]} Ke3 {[%emt 0:02:22]} 59. Re1+ {[%emt 0:00:33]} Kd3 {[%emt 0:00:49]} 60. Re5 {[%emt 0:01:25]} Rc1+ {[%emt 0:01:10]} 61. Kf2 {[%emt 0:01:57]} Rc2+ {[%emt 0:00:11]} 62. Kf1 {[%emt 0:00:34]} Ne4 {[%emt 0:01:00]} 63. Bxe4+ {[%emt 0:00:57]} fxe4 {[%emt 0:00:01]} 64. Re7 {[%emt 0:00:21]} Rxh2 {[%emt 0:00:56]} 65. Rxa7 {[%emt 0:00:20]} Ra2 {[%emt 0:00:50]} 66. Rd7+ {[%emt 0:00:49]} Ke3 {[%emt 0:00:09]} 67. a7 {[%emt 0:00:23]} Kf3 {[%emt 0:00:08]} 68. Ke1 {[%emt 0:00:38]} h5 {[%emt 0:01:48]} 69. Rb7 {[%emt 0:00:20]} e3 {[%emt 0:00:19]} 0-1